Cogmind - Beta 15 @@@ ROGUE MODE // 2025.09.05 @ 15:39:48 Player: JTMusky Result: Destroyed by FG-IEI(R) with Subdweller Laser Performance ------------- Evolutions (0) 0 Regions Visited (2) 400 Robots Destroyed (27) 135 Value Destroyed (508) 508 Prototype IDs (3) 60 Alien Tech Used (0) 0 Bonus (0) 0 TOTAL SCORE: 1103 Bonus ------- None Cogmind --------- Core Integrity 0/250 Matter 280/300 Energy 100/100 System Corruption 2% Temperature Cool (6) Movement Core (550) Ox10 Location -10/Subcaves Parts ------- > --- POWER (1) -------- Subdweller Power Source > --- PROPULSION (2) --- (None) > --- UTILITY (2) ------ Large Storage Unit Signal Interpreter > --- WEAPON (2) ------- Subdweller Machine Gun Subdweller Machine Gun > --- INVENTORY (15) --- Subdweller Power Source Spiked Treads Heat Sink Weight Redist. System Subdweller Optics Sensor Array Signal Interpreter Seismic Detector Utility Shielding Scrap Shield Battle Cannon Datajack Enhanced Flamer Mining Claw Peak State ------------ > --- POWER ------------ Subdweller Power Source > --- PROPULSION ------- Subdweller Monowheel Subdweller Monowheel > --- UTILITY ---------- Large Storage Unit Signal Interpreter > --- WEAPON ----------- Subdweller Machine Gun Subdweller Machine Gun > --- INVENTORY -------- Subdweller Power Source Spiked Treads Heat Sink Weight Redist. System Subdweller Optics Sensor Array Signal Interpreter Seismic Detector Utility Shielding Scrap Shield Battle Cannon Datajack Enhanced Flamer Mining Claw [Rating: 14] Favorites ----------- Power Ion Engine Engine Ion Engine Propulsion Light Treads Treads Light Treads Wheel Subdweller Monowheel Utility Signal Interpreter Device Seismic Detector Storage Large Storage Unit Processor Signal Interpreter Weapon Light Cannon Ballistic Gun Subdweller Machine Gun Ballistic Cannon Light Cannon Launcher Grenade Launcher Slashing Weapon Mining Claw Build | -11 -10 -10 ------- Run | Yrd Mat Sub Slots Evolved . | . . . Power . | . . . Propulsion . | . . . Utility . | . . . Weapon . | . . . Parts Attached 25 | 6 8 11 Power 3 | 1 1 1 Engine 3 | 1 1 1 Core . | . . . Reactor . | . . . Propulsion 8 | 2 . 6 Treads 3 | 2 . 1 Leg . | . . . Wheel 5 | . . 5 Hover . | . . . Flight . | . . . Utility 4 | 2 2 . Device 1 | 1 . . Storage 2 | 1 1 . Processor 1 | . 1 . Hackware . | . . . Protection . | . . . Artifact . | . . . Weapon 10 | 1 5 4 Energy Gun . | . . . Energy Cannon . | . . . Ballistic Gun 3 | 1 . 2 Ballistic Cannon 4 | . 3 1 Launcher 2 | . 1 1 Special Weapon . | . . . Impact Weapon . | . . . Slashing Weapon 1 | . 1 . Piercing Weapon . | . . . Special Melee Weapon . | . . . Unidentified Prototypes . | . . . Parts Lost 4 | . . 4 Power . | . . . Propulsion 1 | . . 1 Utility . | . . . Weapon 3 | . . 3 Highest Loss Streak 2 | . . 2 To Critical Strikes . | . . . Average Backups 10 | 2 8 13 Power . | . . . Propulsion . | 1 . . Utility 6 | . 6 8 Weapon 2 | . 1 2 Tool/Special . | . . . Unused Backups 17 | . 3 14 Power 3 | . 1 2 Propulsion 2 | . 2 . Utility 10 | . . 10 Weapon 1 | . . 1 Tool/Special 1 | . . 1 Average Slot Usage (%) 97 | . 98 96 Engine 13 | . 13 13 Treads 16 | . 28 2 Wheel 10 | . . 23 Device 1 | . 2 . Storage 14 | . 14 14 Processor 12 | . 11 14 Ballistic Gun 5 | . 1 10 Ballistic Cannon 16 | . 20 11 Launcher 3 | . 2 4 Peak Build Rating 14 | 6 8 14 Average Rating 9 | 5 7 12 On Entrance 4 | . 6 8 Naked Turns . | . . . Heaviest Build 33 | 11 31 33 Greatest Support 40 | 40 40 40 Greatest Overweight (x) 10 | 1 . 10 Average Overweight (x) . | . . . Largest Inventory Capacity 15 | 8 15 15 Average Capacity 12 | 7 10 15 Most Carried 15 | 3 13 15 Average Carried 11 | 2 8 14 Final Capacity 15 | 8 15 15 Final Carried 15 | 3 13 15 Class Distribution -------------------- 90% | Mutant 9% | Scavenger-Mutant Dominant Class ---------------- Mutant | -10/Materials Mutant | -10/Subcaves Resources | -11 -10 -10 ----------- Run | Yrd Mat Sub Matter Collected 1238 | 275 402 561 Remotely . | . . . Salvage Created 670 | 138 437 95 Parts 43 | 9 29 5 Haulers Intercepted 2 | . 2 . Recyclers Shooed 1 | 1 . . Parts Field Recycled . | . . . Retrieved Matter . | . . . Parts Self-Destructed 14 | . . 14 Prevented . | . . . Kills | -11 -10 -10 ------- Run | Yrd Mat Sub Combat Hostiles Destroyed 18 | . 13 5 Guns 2 | . 2 . Cannons 11 | . 10 1 AOE 5 | . 1 4 Classes Destroyed 9 | 3 5 1 Worker 1 | 1 . . Tunneler 1 | 1 . . Hauler 2 | . 2 . Recycler 2 | 1 1 . Operator 1 | . 1 . Watcher 2 | . 2 . Swarmer 11 | . 9 2 Grunt 4 | . 4 . Subdweller 3 | . . 3 Best Kill Streak 3 | 2 3 2 Combat Bots Only 3 | . 3 2 Max Kills in Single Turn 2 | 1 2 1 Gunslinging . | . . . Exploded 1 | . 1 1 Melee . | . . . Uniques/NPCs Destroyed . | . . . Combat | -11 -10 -10 -------- Run | Yrd Mat Sub Hostile Shots Fired 120 | . 67 53 Missed 31 | . 16 15 Hits 89 | . 51 38 Projectile 89 | . 51 38 Critical Strikes 2 | . 1 1 Damage Taken 995 | . 496 499 Core 253 | . 99 154 Absorbed by Shields . | . . . Regen/Repaired (Parts) 40 | . 40 . Core Remaining (%) 100 | 100 . . Volleys Fired 97 | 5 64 28 Largest 2 | 1 2 2 Hottest 60 | 20 60 60 Shots Fired 151 | 5 95 51 Gun 39 | 5 24 10 Cannon 88 | . 65 23 Launcher 24 | . 6 18 Special . | . . . Kinetic 127 | 5 89 33 Thermal . | . . . Explosive 24 | . 6 18 Electromagnetic . | . . . Robot Hit Streak 9 | 5 8 9 Robot Miss Streak 6 | . 6 2 Penetration Max . | . . . Secondary Targets . | . . . Shots Hit Robots 73 | 5 39 29 Core Hits 42 | 4 22 16 Critical Kills . | . . . Critical Parts Destroyed . | . . . Critical Strikes 4 | . 3 1 Blast 4 | . 3 1 Melee Attacks 3 | . 3 . Impact . | . . . Slashing 3 | . 3 . Piercing . | . . . Sneak Attacks . | . . . Combat Hostiles . | . . . Follow-up Attacks . | . . . Damage Inflicted 2165 | 64 666 1435 Guns 453 | 64 207 182 Cannons 544 | . 376 168 Explosions 1164 | . 79 1085 Melee . | . . . Ramming 4 | . 4 . Kinetic 997 | 64 583 350 Thermal . | . . . Explosive 1164 | . 79 1085 Electromagnetic . | . . . Impact . | . . . Slashing . | . . . Piercing . | . . . Highest Corruption 2 | . 2 2 Average Corruption 2 | . 2 2 Corruption Purged . | . . . Corruption Blocked . | . . . Effects 33 | . 9 24 Message Errors 10 | . . 10 Matter Fused 8 | . 5 3 Heat Flow Errors 4 | . 1 3 Energy Discharges 6 | . 3 3 Parts Fused 1 | . . 1 Data Loss (minor) 2 | . . 2 Data Loss (major) 1 | . . 1 Alerts 1 | . . 1 Overload Shots . | . . . Overflow Damage 26 | . . 26 Projectiles . | . . . Explosions 26 | . . 26 Melee . | . . . Knockbacks 6 | . 3 3 Impact . | . . . Kinetic 6 | . 3 3 Secondary . | . . . Self-Inflicted Damage 56 | . 39 17 Shots 3 | . 2 1 Rammed . | . . . Targets Rammed 1 | . 1 . Kicked . | . . . Crushed 1 | . 1 . Highest Temperature 146 | . 146 117 Average Temperature 67 | . 71 64 Received Heat Transfer 270 | . 90 180 Siege Activations . | . . . Martial Activations . | . . . Shielding Activations . | . . . Robots Disrupted . | . . . Combat Hostiles . | . . . Robots Corrupted . | . . . Combat Hostiles . | . . . Parts Fried . | . . . Impact Corruptions . | . . . Robots Melted . | . . . Combat Hostiles . | . . . Parts Melted . | . . . Heat Transferred . | . . . Parts Sabotaged . | . . . Parts Stolen . | . . . Parts Stripped . | . . . Power Chain Reactions . | . . . Alert | -11 -10 -10 ------- Run | Yrd Mat Sub Maximum Alert Level . | . . . Low Security (%) 100 | 100 100 . Level 1 . | . . . Level 2 . | . . . Level 3 . | . . . Level 4 . | . . . Level 5 . | . . . High Security . | . . . Max Security . | . . . Peak Influence 161 | 10 161 . Initial . | . . . Average 73 | . 77 . Influence Increases 623 | 15 538 70 Destroy 0b10 Robot/C 300 | . 260 40 Destroy 0b10 Robot/NC 45 | 15 30 . Destroy Leader 48 | . 48 . Successful Hack 47 | . 47 . Disable Machine 105 | . 105 . Destroy Structure 33 | . 33 . Lose Combat Pursuer 45 | . 15 30 Influence Decreases 623 | 15 386 222 Entered New Map 74 | . . 74 Time Decay 539 | 15 386 138 Lost Part 10 | . . 10 Squads Dispatched 1 | . 1 . Investigation . | . . . Extermination . | . . . Reinforcement 1 | . 1 . Assault . | . . . Garrison . | . . . Intercept . | . . . Searches Triggered . | . . . Construction Impeded . | . . . Haulers Reinforced . | . . . Active Scanning Responses . | . . . Cargo Convoy Interrupts . | . . . Stealth | -11 -10 -10 --------- Run | Yrd Mat Sub Distress Signals . | . . . Communications Jammed . | . . . Distress Signals . | . . . Times Spotted 44 | . 26 18 Peak Tracking Total 5 | . 3 5 Tactical Retreats 2 | . 1 1 Traps | -11 -10 -10 ------- Run | Yrd Mat Sub Traps Triggered 1 | . 1 . Indirectly . | . . . Trap Hack Attempts . | . . . Triggered . | . . . Disarmed . | . . . Reprogrammed . | . . . Reused . | . . . Traps Extracted . | . . . Installed . | . . . Triggered . | . . . Machines | -11 -10 -10 ---------- Run | Yrd Mat Sub Machines Disabled 8 | . 7 1 Max in Single Turn 1 | . 1 1 Machines Repaired . | . . . Machines Dismantled . | . . . Machines Sabotaged . | . . . Overloaded Fab Kills . | . . . Hacking | -11 -10 -10 --------- Run | Yrd Mat Sub Machines Accessed 10 | . 9 1 Terminals 6 | . 6 . Fabricators . | . . . Repair Stations 1 | . 1 . Recycling Units 2 | . 2 . Scanalyzers . | . . . Garrison Access . | . . . Total Hacks 27 | . 26 1 Successful 17 | . 16 1 Failed 10 | . 10 . Catastrophic 1 | . 1 . Database Lockouts . | . . . Manual . | . . . Terminals 17 | . 17 . Fabricators . | . . . Repair Stations 6 | . 6 . Recycling Units 3 | . 3 . Scanalyzers . | . . . Garrison Access . | . . . Terminal Hacks 12 | . 11 1 Record 1 | . . 1 Prototype ID Bank 2 | . 2 . Emergency Access Points 2 | . 2 . Locate Traps 1 | . 1 . Dispatch Records 2 | . 2 . Transport Status 1 | . 1 . Hauler Manifests 2 | . 2 . Zone Layout 1 | . 1 . Fabricator Hacks . | . . . Repair Station Hacks 3 | . 3 . Scan Component 2 | . 2 . Repair 1 | . 1 . Recycling Unit Hacks 2 | . 2 . Report Inventory 2 | . 2 . Scanalyzer . | . . . Garrison Access Hacks . | . . . Unauthorized Hacks . | . . . Terminals . | . . . Fabricators . | . . . Repair Stations . | . . . Recycling Units . | . . . Scanalyzers . | . . . Garrison Access . | . . . Data Cores Recovered 1 | . 1 . Used . | . . . Hacking Detections 5 | . 5 . Full Trace Events 1 | . 1 . Feedback Events . | . . . Feedback Blocked . | . . . Robot Schematics Acquired . | . . . Robots Built . | . . . Authchips . | . . . Time . | . . . Total Robot Build Rating . | . . . Part Schematics Acquired . | . . . Parts Built . | . . . Authchips . | . . . Time . | . . . Total Part Build Rating . | . . . Parts Repaired 1 | . 1 . Time 18 | . 18 . Parts Recycled . | . . . Recycled Matter . | . . . Retrieved Matter . | . . . Retrieved Components . | . . . Parts Scanalyzed . | . . . Part Schematics Acquired . | . . . Parts Damaged . | . . . Bothacking | -11 -10 -10 ------------ Run | Yrd Mat Sub Used RIF Installer . | . . . Robots Hacked . | . . . Non-combat . | . . . Combat . | . . . Robot Hacks Applied . | . . . Relay Couplers Released . | . . . Fabnet Peak Effective % . | . . . Robots Rewired . | . . . Allies Hacked . | . . . Hacks Repelled . | . . . Allies | -11 -10 -10 -------- Run | Yrd Mat Sub Total Allies . | . . . Largest Group . | . . . Highest-Rated Group . | . . . Highest-Rated Ally . | . . . Total Orders . | . . . Ally Attacks . | . . . Total Damage . | . . . Kills . | . . . Allies Corrupted . | . . . Allies Melted . | . . . Intel | -11 -10 -10 ------- Run | Yrd Mat Sub Active Infowar (turns) 310 | 44 266 . Seismic 310 | 44 266 . Robot Analysis Total . | . . . Derelict Logs Recovered 1 | . . 1 Drone Launches . | . . . Drone Recoveries . | . . . Exploration | -11 -10 -10 ------------- Run | Yrd Mat Sub Turns Passed 3740 | 124 1938 1678 Spaces Moved 2363 | 66 1020 1277 Core 17 | 7 . 10 Treads 1166 | 59 1020 87 Legs . | . . . Wheels 1180 | . . 1180 Hover . | . . . Flight . | . . . Fastest Speed 50 | 50 160 110 Average Speed 138 | 152 160 121 Slowest Speed 550 | 160 160 550 Overloaded Moves . | . . . Propulsion Burnouts . | . . . Robots Hopped . | . . . Potential Cave-ins . | . . . Cave-ins Triggered . | . . . Exploration Rate (%) 55 | 4 98 63 Regions Visited 2 Branch Regions 1 Pre-discovered Areas 1 | . . 1 Known Exits Taken 1 | . 1 . Unknown Exits Taken 1 | 1 . . Scrap Searched 3 | . . 3 Spaces Dug 9 | . 9 . Terrain Destroyed 105 | . 41 64 Melee . | . . . Projectile . | . . . AOE 105 | . 41 64 Terrain Rammed . | . . . Walls Destroyed . | . . . Machines Disabled . | . . . Actions | -11 -10 -10 --------- Run | Yrd Mat Sub Total 2664 | 82 1223 1359 Wait 113 | 3 96 14 Move 2361 | 65 1019 1277 Hop . | . . . Pick Up 27 | 3 17 7 Fast Attach 21 | 6 4 11 Attach 1 | . . 1 Detach 3 | . 1 2 Swap 10 | . 9 1 Drop 23 | . 9 14 Fire 97 | 5 64 28 Melee 3 | . 3 . Ram . | . . . Kick . | . . . Crush 1 | . 1 . Escape Stasis . | . . . Rewire 4 | . . 4 Trap . | . . . Miscellaneous . | . . . Route ------- -11/Scrapyard -10/Materials (discovered 5 exits: *Mat x3 / *Min / *Sub) -10/Subcaves (discovered 3 exits: *Mat x2 / *Rec) History --------- Turn | Location | Event 10 | -11/Scrapyard | Discovered new exit (range 15) 125 | -11/Scrapyard | Entered Materials 316 | -10/Materials | Build established: Mutant 384 | -10/Materials | Discovered new exit (range 3) 393 | -10/Materials | Identified exit to Materials 563 | -10/Materials | Discovered new exit (range 8) 573 | -10/Materials | Identified exit to Mines 952 | -10/Materials | Discovered exit to Materials (range 13) 1010 | -10/Materials | Discovered new exit (range 14) 1031 | -10/Materials | Identified exit to Subcaves 1103 | -10/Materials | Discovered exit to Materials (range 12) 1525 | -10/Materials | Repaired Broken Ion Engine 2063 | -10/Materials | Entered Subcaves 2071 | -10/Subcaves | Learned location of Zion (-6) 2156 | -10/Subcaves | Ambushed by swarm of Subdwellers 2288 | -10/Subcaves | Discovered new exit (range 15) 2304 | -10/Subcaves | Identified exit to Materials 2337 | -10/Subcaves | Core integrity fell below 50% 2448 | -10/Subcaves | Visited Clippyterm 2596 | -10/Subcaves | Shifting Twisted Machinery released Riot Gun 2600 | -10/Subcaves | Shifting Twisted Machinery released Enh. Flamer 2616 | -10/Subcaves | Ambushed by Subdwellers from Twisted Machinery 2636 | -10/Subcaves | Discovered exit to Materials (range 13) 2691 | -10/Subcaves | Shifting Twisted Machinery released Sub. Monowheel 2695 | -10/Subcaves | Shifting Twisted Machinery released Battle Cannon 2720 | -10/Subcaves | Discovered new exit (range 11) 2748 | -10/Subcaves | Identified exit to Recycling 3624 | -10/Subcaves | Build established: Scavenger-Mutant 3736 | -10/Subcaves | Core integrity fell below 20% 3741 | -10/Subcaves | Destroyed by FG-IEI(R) with Subdweller Laser Last Messages --------------- 03594_ System corrupted: Heat flow error (+162). 03634_ Sub. Monowheel shoots sparks and powers down. 03640_ Searching scrap... 03640_ Found Barrage Gun. 03640_ Found 53 Matter. 03641_ Acquired 16 matter. 03641_ Searching scrap... 03641_ Found Mak. Light Armor Plating. 03641_ Found Sub. Machine Gun. 03641_ Found 51 Matter. 03646_ Searching scrap... 03646_ Found Mak. Flight Unit. 03646_ Found Riot Gun. 03646_ Found 56 Matter. 03670_ Sub. Monowheel shoots sparks and powers down. 03671_ Dropped Broken Sub. Monowheel. 03726_ HV Slug penetrates Wall. 03732_ Penetrated by HV Slug. 03732_ HV Slug penetrates Wall. 03733_ KM-HML(h) destroyed. Map ----- +----------------------------------------------------+ | ## #??????????????????????????????????????? | | ### #??????????????????????????????????????? | | #?? ##??????????????????????????????????????? | | ##?? ###?????????????????????????????????????? | | #?? ##????????????????????????????????????? | | [ ##?? ##???????????????????????????????????? | | ! ##?# #???????????????????????????????????? | | *!* #?# #???????????????????????????????????? | | & ### #???????????????????????????????????? | | &*&[ #???????????????????????????????????? | | "## #???????????????????????????????????? | | "## ## #???????????????????????????????????? | | ## ### #???????????????????????????????????? | | #?## ##???????????????????????????????????? | | #?# #???????????????????????????????????? | | #### ##???????????????????????????????????? | | # #???????????????????????????????????? | | ##????#######????????????????????????? | | # #?????# [#%!#????????????????????????? | | ##### #?????#%=[[%#????????????????????????? | | ##??## #?????### "##????????????????????????? | | #??## #??????# ###????????????????????????? | | #??# ######### # #????????????????????????? | | #??# # # # < " #????????????????????????? | | #??## ######???????????????????? | | ##???## O R@ ##??????????????????? | | #?????## # # % ! ! ##?????????????????? | | #??????## # ## ## % ##????????##??????? | | ##???????### ## #### ##?????? ###????? | | #??????????## ##??# #???## ?????? | | ###?????????# ### ##??## #### #????????? | | #?????????####?####??## = #????????? | | ##????????????????????# = ##????????? | | ###?????????????????????## ## ###?????????? | | ?????????????????????????#############???????????? | | ?????????????????????????????????????????????????? | | ?????????????????????????????????????????????????? | | ?????????????????????????????????????????????????? | | ?????????????????????????????????????????????????? | | ?????????????????????????????????????????????????? | | ?????????????????????????????????????????????????? | | ?????????????????????????????????????????????????? | | ?????????????????????????????????????????????????? | | ?????????????????????????????????????????????????? | | ?????????????????????????????????????????????????? | | ?????????????????????????????????????????????????? | | ?????????????????????????????????????????????????? | | ?????????????????????????????????????????????????? | | ?????????????????????????????????????????????????? | | | +----------------------------------------------------+ Best States ------------- Heat Dissipation 25 Energy Generation 15 Energy Capacity 250 Matter Stores 300 Matter Capacity 300 Sight Range 16 Terrain Scan Density 10 Evasion (%) 40 Recoil Reduction 2 Item Schematics ----------------- None Robot Schematics ------------------ None Fabricated ------------ Nothing Repaired ---------- Ion Engine | 33% | -10/Materials | Broken Alien Tech Used ----------------- None Achievements -------------- None Challenges ------------ None Game ------ Seed BottomlessShadingTendrils Manual? 0 Play Time 01:06:03 Cumulative 42.0 hours Start 2025.09.02 @ 22:11:10 End 2025.09.05 @ 15:39:48 Sessions 10 Manual Loads 0 Difficulty Rogue Special Mode None Game No. 57 Rogue 57 Adventurer 0 Explorer 0 Win Type - Total 0 Types 0/0/0/0/0/0/0/0/0/0 Lore% 14 Gallery% 18 Achievement% 20 Wizard Run 0 Options --------- Layout 2 ASCII 1 Keyboard 1 Movement Vi Keybinds 1 Fullscreen 0 Font 28/SmallcapsGlow Map View 59x48 Zoom Use 9% Tactical HUD 1 Map Filters NONE Filters NONE Steam 0 RUN: 0ee1b929-03e8-4369-8e93-1bab17286114